bitfinex-derivatives/quotes_SOLF0:USTF0_20240820
["timestamp","ask_amount","ask_price","bid_price","bid_amount"]
[1724133521241,3.3873,147.52,147.49,0.0499131]
[1724133521443,13.78981739,147.54,147.49,0.0499131]
[1724133521642,3.3872,147.52,147.49,0.0499131]
[1724133522942,3.3874,147.51,147.49,0.0499131]
[1724133523648,3.3872,147.52,147.49,0.0499131]
[1724133524047,3.3874,147.51,147.49,0.0499131]
[1724133526148,3.38981739,147.54,147.49,0.0499131]
[1724133526750,3.3875,147.51,147.49,0.0499131]
[1724133528952,3.3872,147.52,147.49,0.0499131]
[1724133531056,3.3874,147.51,147.49,0.0499131]
[1724133533058,3.3872,147.52,147.49,0.0499131]
[1724133533255,3.38981739,147.54,147.49,0.0499131]
[1724133535160,3.3874,147.51,147.49,0.0499131]
[1724133537356,3.38981739,147.54,147.49,0.0499131]
[1724133537550,15.6255,147.55,147.49,0.0499131]
[1724133538052,3.3875,147.51,147.49,0.0499131]
[1724133539960,8.59510654,147.55,147.49,10.4499131]
[1724133540152,8.59510654,147.55,147.49,0.0499131]
[1724133541150,3.3872,147.52,147.49,0.0499131]
[1724133541959,3.3875,147.51,147.49,0.0499131]
[1724133542262,10.4,147.54,147.49,0.0499131]
[1724133543765,3.3873,147.52,147.49,0.0499131]
[1724133543959,10.4,147.54,147.49,0.0499131]
[1724133544459,3.3872,147.52,147.49,0.0499131]
[1724133547164,8.59510654,147.55,147.49,0.0499131]
[1724133547363,8.59510654,147.55,147.5,10.4]
[1724133548353,8.59510654,147.55,147.51,10.4]
[1724133548556,3.3868,147.54,147.49,3.4376131]
[1724133548766,3.3868,147.54,147.51,10.4]
[1724133549060,3.3868,147.54,147.49,3.4376131]
[1724133549261,3.3868,147.54,147.51,10.4]
[1724133549465,2.545,147.55,147.51,10.4]
[1724133549664,2.545,147.55,147.49,0.0499131]
[1724133549665,2.545,147.55,147.52,10.4]
[1724133550466,2.545,147.55,147.52,10.44555903]
[1724133550655,49.21233523,147.57,147.52,10.44555903]
[1724133550858,2.6313,147.59,147.55,10.4]
[1724133551262,2.6313,147.59,147.56,0.04913722]
[1724133551863,2.6313,147.59,147.57,10.4]
[1724133552068,13.0386,147.64,147.57,10.4]
[1724133552259,3.385,147.62,147.57,10.4]
[1724133552568,3.385,147.62,147.59,0.04747394]
[1724133554758,6.016,147.63,147.59,0.04747394]
[1724133554964,6.016,147.63,147.6,10.4]
[1724133555158,2.6313,147.63,147.6,10.4]
[1724133555466,2.6217,147.66,147.6,10.4]
[1724133555871,3.3842,147.65,147.6,13.7851]
[1724133556465,3.3844,147.64,147.6,10.4]
[1724133556761,13.0217,147.66,147.59,0.04747394]
[1724133556970,3.385,147.62,147.59,0.04747394]
[1724133557559,3.33776317,147.63,147.59,0.04747394]
[1724133557771,2.5858,147.63,147.51,22.76608428]
[1724133558062,3.3854,147.6,147.54,10.4]
[1724133558257,10.4,147.61,147.55,10.4]
[1724133558666,3.3853,147.6,147.56,3.3862]
[1724133558870,0.04796731,147.59,147.57,0.04938552]
[1724133561159,0.04796731,147.59,147.57,10.44938552]
[1724133561664,0.04796731,147.59,147.58,10.4]
[1724133562570,0.04796731,147.59,147.57,10.44938552]
[1724133562869,0.04796731,147.59,147.57,13.83518552]
[1724133564168,0.04796731,147.59,147.58,3.3857]
[1724133564665,0.04796731,147.59,147.57,10.44938552]
[1724133564970,0.04796731,147.59,147.57,13.83518552]
[1724133565465,0.04796731,147.59,147.57,0.04938552]
[1724133566973,3.43356731,147.59,147.57,0.04938552]
[1724133567466,0.04796731,147.59,147.57,10.44938552]
[1724133568072,0.04796731,147.59,147.57,0.04938552]
[1724133568770,3.43346731,147.59,147.57,0.04938552]
[1724133569170,0.04796731,147.59,147.57,0.04938552]
[1724133569572,0.04796731,147.59,147.57,10.44938552]
[1724133569978,0.04796731,147.59,147.57,13.83518552]
[1724133571679,0.04796731,147.59,147.57,10.44938552]
[1724133572182,0.04796731,147.59,147.57,13.83528552]
[1724133572680,0.04796731,147.59,147.58,3.3857]
[1724133572880,2.5858,147.63,147.58,10.4]
[1724133573268,5.9705,147.63,147.59,3.3854]
[1724133574070,3.3848,147.62,147.58,13.7856]
[1724133577777,2.5858,147.63,147.59,3.3854]
[1724133578178,2.5858,147.63,147.57,0.04938552]
[1724133578378,3.3852,147.61,147.57,13.83518552]
[1724133580085,3.3853,147.6,147.57,13.83518552]
[1724133580287,2.5858,147.63,147.58,3.3856]
[1724133581687,3.41538383,147.64,147.58,13.7856]
[1724133581884,10.4,147.65,147.58,13.7856]
[1724133582187,10.4,147.65,147.6,0.04706988]
[1724133582489,3.39924605,147.64,147.6,0.04706988]
[1724133583278,3.3848,147.63,147.6,0.04706988]
[1724133587293,13.785,147.62,147.6,0.04706988]
[1724133591205,30.73,147.61,147.47,30.40750105]
[1724133591496,10.4,147.56,147.5,10.4]
[1724133591898,13.7863,147.56,147.52,3.3871]
[1724133592400,0.0470256,147.55,147.53,0.04313791]
[1724133592590,10.4470256,147.55,147.45,2.5782]
[1724133592792,10.4,147.55,147.47,10.4]
[1724133593404,13.0964,147.55,147.47,10.4]
[1724133593704,0.04704407,147.52,147.5,0.0503563]
[1724133595599,3.43414407,147.52,147.5,0.0503563]
[1724133596096,3.3874,147.51,147.5,0.0503563]
[1724133596897,3.3878,147.5,147.45,10.4]
[1724133597301,10.4,147.51,147.44,16.3621]
[1724133597606,10.4,147.51,147.45,1.18057249]
[1724133597807,0.04646037,147.49,147.47,0.04327394]
[1724133598101,3.43446037,147.49,147.47,0.04327394]
[1724133598304,0.04646037,147.49,147.47,10.44327394]
[1724133601303,0.04646037,147.49,147.48,10.4]
[1724133601499,2.487,147.6,147.48,10.4]
[1724133601800,2.7047,147.62,147.56,10.4]
[1724133602003,2.7047,147.62,147.54,3.37117209]
[1724133602199,2.7047,147.62,147.56,10.4]
[1724133602596,0.05027763,147.6,147.58,0.04586478]
[1724133604094,0.05027763,147.6,147.58,10.44586478]
[1724133604502,0.05027763,147.6,147.58,0.04586478]
[1724133606205,3.43577763,147.6,147.58,0.04586478]
[1724133606404,0.05027763,147.6,147.58,0.04586478]
[1724133606911,3.43557763,147.6,147.58,0.04586478]
[1724133607300,0.05027763,147.6,147.58,0.04586478]
[1724133608704,25.99,147.67,147.58,0.04586478]
[1724133608912,6.0143,147.66,147.61,3.3849]
[1724133609407,25.99,147.65,147.54,2.6221]
[1724133609705,25.99,147.65,147.55,25.99]
[1724133609908,0.04382609,147.61,147.58,0.04649611]
[1724133610813,25.99,147.7,147.59,25.99]
[1724133611008,25.99,147.7,147.62,3.3848]
[1724133611009,3.3837,147.67,147.62,3.3848]
[1724133611208,25.99,147.7,147.62,3.3848]
[1724133611604,3.3839,147.67,147.62,3.3848]
[1724133612105,3.3839,147.67,147.63,0.04496217]
[1724133612305,3.3839,147.67,147.63,3.42956217]
[1724133612714,3.3839,147.67,147.63,0.04496217]
[1724133613103,25.99,147.66,147.63,0.04496217]
[1724133613309,25.99,147.64,147.55,2.6255]
[1724133614021,2.5815,147.65,147.55,2.6255]
[1724133614315,0.04496217,147.61,147.59,0.0519714]
[1724133614616,0.04496217,147.61,147.59,3.4372714]
[1724133614911,0.04496217,147.61,147.59,0.0519714]
[1724133615111,0.04496217,147.61,147.59,3.4373714]
[1724133615415,0.04496217,147.61,147.59,0.0519714]
[1724133616214,3.3853,147.6,147.59,0.0519714]
[1724133616413,25.99,147.61,147.5,22.7447382]
[1724133616614,25.99,147.59,147.51,1.17933231]
[1724133616915,25.99,147.59,147.5,26.09570254]
[1724133616916,25.99,147.59,147.5,2.5738]
[1724133617113,25.99,147.57,147.5,2.5738]
[1724133617317,3.3866,147.55,147.5,5.9612]
[1724133617714,3.43413075,147.55,147.52,0.04343659]
[1724133617909,0.04753075,147.55,147.53,3.3867]
[1724133618214,0.04753075,147.55,147.52,0.04343659]
[1724133619022,0.04753075,147.55,147.53,3.3867]
[1724133619205,0.04753075,147.55,147.52,0.04343659]
[1724133620315,3.3868,147.54,147.52,0.04343659]
[1724133620511,0.04753075,147.55,147.52,0.04343659]
[1724133620713,3.3867,147.54,147.52,0.04343659]
[1724133620908,0.04753075,147.55,147.52,0.04343659]
[1724133621310,3.3867,147.54,147.52,0.04343659]
[1724133622223,0.04753075,147.55,147.52,0.04343659]
[1724133622709,3.3867,147.54,147.52,0.04343659]
[1724133623517,3.3867,147.54,147.46,2.5768]
[1724133623518,3.3869,147.53,147.46,2.5768]
[1724133623715,25.99,147.54,147.46,2.5768]
[1724133624225,25.99,147.54,147.47,3.3881]
[1724133624712,0.04375669,147.52,147.49,0.04827704]
[1724133625119,26.03375669,147.52,147.49,0.04827704]
[1724133625726,3.3875,147.51,147.49,0.04827704]
[1724133625930,26.03375669,147.52,147.49,0.04827704]
[1724133626620,3.3874,147.51,147.49,0.04827704]
[1724133626824,26.03375669,147.52,147.49,0.04827704]
[1724133627523,3.3876,147.5,147.49,0.04827704]
[1724133628520,3.3874,147.51,147.49,0.04827704]
[1724133629723,3.3876,147.5,147.49,0.04827704]
[1724133630227,25.99,147.5,147.42,3.3894]
[1724133630428,25.99,147.48,147.42,3.3894]
[1724133630625,25.99,147.48,147.4,2.7432]
[1724133630832,3.3885,147.47,147.43,3.3891]
[1724133631131,0.05001,147.46,147.44,0.04477285]
[1724133635733,0.05001,147.46,147.45,3.3887]
[1724133641234,28.6842,147.54,147.44,26.03477285]
[1724133641436,2.6942,147.54,147.46,25.99]
[1724133641937,2.6942,147.54,147.51,3.3872]
[1724133642352,2.74164905,147.54,147.51,3.43034927]
[1724133643035,2.74164905,147.54,147.52,3.3871]
[1724133643830,2.74164905,147.54,147.51,3.43044927]
[1724133644143,2.74164905,147.54,147.51,0.04314927]
[1724133644435,28.73164905,147.54,147.51,0.04314927]
[1724133645132,32.11844905,147.54,147.51,0.04314927]
[1724133645436,28.73164905,147.54,147.51,0.04314927]
[1724133646139,25.99,147.52,147.4,29.37237613]
[1724133646333,25.99,147.49,147.41,1.18242637]
[1724133646537,25.99,147.49,147.46,3.3885]
[1724133647038,26.04022466,147.49,147.46,3.43545553]
[1724133648226,26.04022466,147.49,147.47,3.3882]
[1724133648636,0.05022466,147.49,147.47,3.3882]
[1724133649434,0.05022466,147.49,147.46,3.43535553]
[1724133649841,26.04022466,147.49,147.46,0.04695553]
[1724133650939,26.04022466,147.49,147.46,3.43535553]
[1724133652143,0.05022466,147.49,147.46,0.04695553]
[1724133652644,0.05022466,147.49,147.47,3.3883]
[1724133652942,0.05022466,147.49,147.46,0.04695553]
[1724133653338,26.04022466,147.49,147.46,0.04695553]
[1724133654242,26.04022466,147.49,147.41,1.18247866]
[1724133654243,25.99,147.47,147.41,1.18247866]
[1724133654447,29.40026364,147.47,147.36,53.07]
[1724133654647,3.3886,147.46,147.41,3.3894]
[1724133654848,25.99,147.45,147.41,3.3894]
[1724133655241,25.99,147.45,147.42,3.3894]
[1724133655548,0.04362982,147.44,147.42,3.436213]
[1724133656043,25.99,147.49,147.42,0.046813]
[1724133656249,25.99,147.49,147.4,25.99]
[1724133656448,3.37875927,147.48,147.45,3.3886]
[1724133656746,3.37875927,147.48,147.41,2.6683]
[1724133656946,3.37875927,147.48,147.45,3.3886]
[1724133657148,0.05078932,147.46,147.43,0.04597269]
[1724133657649,0.05078932,147.46,147.43,3.43507269]
[1724133660156,0.05078932,147.46,147.44,3.3889]
[1724133660446,0.05078932,147.46,147.43,0.04597269]
[1724133660951,0.05078932,147.46,147.44,3.3888]
[1724133661642,26.04078932,147.46,147.43,0.04597269]
[1724133662248,3.3889,147.45,147.43,0.04597269]
[1724133662444,25.99,147.44,147.36,2.5193]
[1724133662645,25.99,147.42,147.36,2.5193]
[1724133663352,25.99,147.42,147.35,2.7021]
[1724133663550,26.0369068,147.4,147.37,0.04776222]
[1724133663941,3.3902,147.39,147.37,0.04776222]
[1724133664247,25.99,147.38,147.3,5.1527]
[1724133664445,0.0469068,147.4,147.3,5.1527]
[1724133664446,25.99,147.36,147.31,1.18332249]
[1724133664647,25.99,147.36,147.3,5.1527]
[1724133664847,25.99,147.36,147.31,3.3918]
[1724133665250,0.0495583,147.35,147.32,0.04461865]
[1724133665952,3.4406583,147.35,147.32,0.04461865]
[1724133666149,25.99,147.31,147.21,31.2002]
[1724133666349,25.99,147.31,147.26,3.3929]
[1724133666549,25.99,147.31,147.23,25.99]
[1724133667145,0.04551122,147.28,147.26,0.04410453]
[1724133668243,25.99,147.35,147.26,0.04410453]
[1724133668448,25.99,147.35,147.25,25.99]
[1724133669246,0.04920995,147.31,147.29,0.04334518]
[1724133674056,3.44120995,147.31,147.29,0.04334518]
[1724133675348,0.04920995,147.31,147.29,0.04334518]
[1724133677253,29.30494971,147.38,147.29,31.29934518]
[1724133677448,29.30494971,147.38,147.29,31.256]
[1724133677648,25.99,147.38,147.29,31.256]
[1724133677851,25.99,147.4,147.29,31.256]
[1724133678050,0.04453722,147.36,147.33,0.04859706]
[1724133678249,0.04453722,147.36,147.33,3.43999706]
[1724133678457,0.04453722,147.36,147.33,0.04859706]
[1724133678652,0.04453722,147.36,147.35,3.391]
[1724133678854,0.04453722,147.36,147.33,0.04859706]
[1724133679851,25.99,147.35,147.33,0.04859706]
[1724133680050,3.3913,147.34,147.33,0.04859706]
[1724133682159,25.99,147.34,147.25,28.5396]
[1724133682353,25.99,147.34,147.25,2.5496]
[1724133682954,25.99,147.31,147.25,2.5496]
[1724133683156,0.05013547,147.29,147.27,0.04515373]
[1724133685854,0.05013547,147.29,147.27,3.43795373]
[1724133686965,0.05013547,147.29,147.27,0.04515373]
[1724133687864,3.44263547,147.29,147.27,0.04515373]
[1724133688662,0.05013547,147.29,147.27,0.04515373]
[1724133689251,3.44253547,147.29,147.27,0.04515373]
[1724133689666,0.05013547,147.29,147.27,0.04515373]
[1724133690459,0.05013547,147.29,147.28,3.3926]
[1724133692058,0.05013547,147.29,147.27,3.43795373]
[1724133692365,0.05013547,147.29,147.27,0.04515373]
[1724133692862,0.05013547,147.29,147.27,3.43785373]
[1724133694356,0.05013547,147.29,147.28,3.3926]
[1724133696566,3.3911,147.35,147.32,3.3916]
[1724133697565,3.43801509,147.35,147.32,3.44250957]
[1724133697860,3.43801509,147.35,147.32,0.05090957]
[1724133699464,3.3913,147.34,147.32,0.05090957]
[1724133699664,29.3813,147.34,147.32,0.05090957]
[1724133700455,3.3915,147.33,147.32,0.05090957]
[1724133700868,29.3814,147.34,147.32,0.05090957]
[1724133701365,25.99,147.34,147.32,0.05090957]
[1724133701861,3.3915,147.33,147.32,0.05090957]
[1724133704873,29.3814,147.34,147.32,0.05090957]
[1724133705670,3.3915,147.33,147.32,0.05090957]
[1724133707067,26.03691509,147.35,147.32,0.05090957]
[1724133707770,3.3913,147.34,147.32,0.05090957]
[1724133707980,26.03691509,147.35,147.32,0.05090957]
[1724133709171,29.42811509,147.35,147.32,0.05090957]
[1724133710672,3.3913,147.34,147.32,0.05090957]
[1724133710976,26.03691509,147.35,147.32,0.05090957]
[1724133712773,3.3913,147.34,147.32,0.05090957]
[1724133713375,29.42801509,147.35,147.32,0.05090957]
[1724133713672,26.03691509,147.35,147.32,0.05090957]
[1724133714676,3.3913,147.34,147.32,0.05090957]
[1724133715382,29.42801509,147.35,147.32,0.05090957]
[1724133715580,0.04691509,147.35,147.32,0.05090957]
[1724133716472,0.04691509,147.35,147.33,3.3913]
[1724133717075,0.04691509,147.35,147.32,0.05090957]
[1724133717579,0.04691509,147.35,147.34,3.3913]
[1724133718577,0.04691509,147.35,147.33,3.3914]
[1724133719083,0.04691509,147.35,147.32,0.05090957]
[1724133719276,0.04691509,147.35,147.34,3.3913]
[1724133721781,0.04691509,147.35,147.33,3.3914]
[1724133722577,0.04691509,147.35,147.32,0.05090957]
[1724133722578,0.04691509,147.35,147.32,3.44250957]
[1724133722980,3.43791509,147.35,147.32,0.05090957]
[1724133723379,0.04691509,147.35,147.32,0.05090957]
[1724133723572,3.3915,147.33,147.32,0.05090957]
[1724133725179,29.3813,147.34,147.32,0.05090957]
[1724133726883,3.3915,147.33,147.32,0.05090957]
[1724133727291,25.99,147.34,147.32,0.05090957]
[1724133728189,0.04691509,147.35,147.32,0.05090957]
[1724133728589,25.99,147.34,147.32,0.05090957]
[1724133729093,0.04691509,147.35,147.32,0.05090957]
[1724133729293,26.03691509,147.35,147.32,0.05090957]
[1724133729989,0.04691509,147.35,147.32,0.05090957]
[1724133731591,0.04691509,147.35,147.32,3.44250957]
[1724133735102,0.04691509,147.35,147.33,3.3915]
[1724133735301,0.04691509,147.35,147.32,0.05090957]
[1724133735712,0.04691509,147.35,147.34,3.3913]
[1724133738715,0.04691509,147.35,147.32,0.05090957]
[1724133739309,0.04691509,147.35,147.32,3.44260957]
[1724133739817,3.43801509,147.35,147.32,3.44260957]
[1724133740612,0.04691509,147.35,147.32,3.44260957]
[1724133741509,0.04691509,147.35,147.32,0.05090957]
[1724133742119,0.04691509,147.35,147.33,3.3913]
[1724133743024,0.04691509,147.35,147.34,3.3913]
[1724133743923,0.04691509,147.35,147.33,3.3914]
[1724133744622,0.04691509,147.35,147.32,3.44250957]
[1724133746831,3.43811509,147.35,147.32,0.05090957]
[1724133747223,0.04691509,147.35,147.32,0.05090957]
[1724133748028,26.05,147.33,147.32,0.05090957]
[1724133748226,26.05,147.33,147.27,60.61916719]
[1724133748227,26.05,147.33,147.25,27.12]
[1724133748426,26.05,147.33,147.23,86.66916719]
[1724133748627,26.05,147.33,147.26,3.3929]
[1724133748628,3.3921,147.31,147.26,3.3929]
[1724133749138,0.04414423,147.3,147.27,3.44063325]
[1724133749631,3.43644423,147.3,147.27,0.04783325]
[1724133749823,0.04414423,147.3,147.27,0.04783325]
[1724133750326,3.3926,147.28,147.22,22.91128906]
[1724133750627,3.3929,147.27,147.23,3.3936]
[1724133750933,26.05,147.29,147.22,2.7049]
[1724133751333,0.05191041,147.27,147.24,0.04589932]
[1724133755237,10.42,147.26,147.24,0.04589932]
[1724133755925,13.8132,147.26,147.24,0.04589932]
[1724133756131,0.05191041,147.27,147.24,0.04589932]
[1724133756536,3.44491041,147.27,147.24,0.04589932]
[1724133756840,10.42,147.26,147.24,0.04589932]
[1724133757128,13.8133,147.25,147.18,10.42]
[1724133757328,13.8133,147.25,147.19,1.09305622]
[1724133757525,13.8133,147.25,147.21,3.3941]
[1724133758122,0.05164094,147.24,147.22,0.04802148]
[1724133760834,3.44534094,147.24,147.22,0.04802148]
[1724133762929,0.05164094,147.24,147.22,0.04802148]
[1724133763129,10.47164094,147.24,147.22,0.04802148]
[1724133763738,3.3938,147.23,147.22,0.04802148]
[1724133764040,10.47164094,147.24,147.22,0.04802148]
[1724133764937,3.44534094,147.24,147.22,0.04802148]
[1724133765138,0.05164094,147.24,147.22,0.04802148]
[1724133765438,3.3938,147.23,147.22,0.04802148]
[1724133765638,13.8138,147.23,147.22,0.04802148]
[1724133767042,3.3943,147.21,147.18,3.3948]
[1724133767937,3.3941,147.22,147.16,10.42]
[1724133768151,0.04503776,147.21,147.18,0.04899912]
[1724133769245,3.43943776,147.21,147.18,3.44389912]
[1724133769437,0.04503776,147.21,147.18,0.04899912]
[1724133770147,0.04503776,147.21,147.19,3.3947]
[1724133771244,3.43933776,147.21,147.18,3.44379912]
[1724133772147,0.04503776,147.21,147.19,3.3947]
[1724133774041,3.43933776,147.21,147.18,3.44389912]
[1724133774433,0.04503776,147.21,147.18,0.04899912]
[1724133774647,3.3945,147.2,147.18,0.04899912]
[1724133775142,0.04503776,147.21,147.18,0.04899912]
[1724133775446,10.42,147.2,147.18,0.04899912]
[1724133775846,3.3947,147.19,147.18,0.04899912]
[1724133777043,13.8146,147.2,147.18,0.04899912]
[1724133778145,3.3947,147.19,147.18,0.04899912]
[1724133778344,10.42,147.19,147.11,10.42]
[1724133778549,10.42,147.19,147.12,1.09357563]
[1724133778847,10.42,147.19,147.14,3.3957]
[1724133778848,3.3951,147.18,147.14,3.3957]
[1724133779144,10.42,147.17,147.1,7.9393]
[1724133779347,13.8154,147.16,147.12,3.44218765]
[1724133779551,0.04582655,147.15,147.12,0.04608765]
[1724133780246,0.04582655,147.15,147.13,3.396]
[1724133780848,0.04582655,147.15,147.14,3.3959]
[1724133781442,0.04582655,147.15,147.13,3.3961]
[1724133781644,0.04582655,147.15,147.14,10.42]
[1724133782137,0.04582655,147.15,147.14,13.8159]
[1724133782340,0.04582655,147.15,147.14,3.3959]
[1724133784050,0.04582655,147.15,147.12,0.04608765]
[1724133785447,0.04582655,147.15,147.13,3.3961]
[1724133785647,0.04582655,147.15,147.12,0.04608765]
[1724133785848,3.44152655,147.15,147.12,3.44228765]
[1724133786242,3.44152655,147.15,147.12,0.04608765]
[1724133786448,3.44152655,147.15,147.12,3.44228765]
[1724133786755,0.04582655,147.15,147.12,0.04608765]
[1724133787053,10.46582655,147.15,147.12,0.04608765]
[1724133787247,3.396,147.14,147.12,0.04608765]
[1724133787755,3.396,147.14,147.11,3.3965]
[1724133787756,10.42,147.13,146.99,346.7984]
[1724133787956,10.42,147.12,147.05,10.42]
[1724133788149,10.42,147.12,147.06,1.0940732]
[1724133788758,0.04854639,147.1,147.08,3.44094982]
[1724133788946,0.04854639,147.1,147.08,0.04384982]
[1724133789345,0.04854639,147.1,147.09,3.397]
[1724133790048,0.04854639,147.1,147.04,2.7089]
[1724133790049,10.46854639,147.1,147.01,10.42]
[1724133790260,10.42,147.05,147.02,1.09440283]
[1724133790453,10.42,147.05,147.03,3.3983]
[1724133791151,13.818,147.05,147.0,13.78608188]
[1724133791356,3.398,147.05,147.0,13.78608188]
[1724133792352,3.44632947,147.05,147.03,0.04881074]
[1724133793150,0.04832947,147.05,147.03,0.04881074]
[1724133793550,0.04832947,147.05,147.03,3.44721074]
[1724133795458,0.04832947,147.05,147.04,3.3982]
[1724133795953,0.04832947,147.05,147.03,0.04881074]
[1724133796150,0.04832947,147.05,147.03,3.44701074]
[1724133796458,0.04832947,147.05,147.03,0.04881074]
[1724133796650,3.44632947,147.05,147.03,0.04881074]
[1724133798453,0.04832947,147.05,147.03,3.44721074]
[1724133798854,3.44632947,147.05,147.03,0.04881074]
[1724133799057,0.04832947,147.05,147.03,0.04881074]
[1724133799458,3.44642947,147.05,147.03,0.04881074]
[1724133800458,3.44642947,147.05,146.99,10.42]
[1724133800459,10.42,147.04,146.97,13.1248]
[1724133800652,10.42,147.04,146.97,16.55023381]
[1724133800857,10.42,147.03,146.99,3.3992]
[1724133801159,3.3988,147.02,146.99,3.3992]
[1724133801855,3.444846,147.02,146.99,3.4508698]
[1724133802466,0.046046,147.02,146.99,3.4508698]
[1724133802856,0.046046,147.02,147.0,3.3991]
[1724133803059,3.444746,147.02,146.99,0.0516698]
[1724133803559,3.444746,147.02,146.99,3.4509698]
[1724133804358,0.046046,147.02,147.0,3.3991]
[1724133805266,0.046046,147.02,147.01,3.3989]
[1724133806060,0.046046,147.02,146.99,0.0516698]
[1724133806460,0.046046,147.02,147.0,3.399]
[1724133806664,0.046046,147.02,146.99,0.0516698]
[1724133807053,0.046046,147.02,147.01,3.3989]
[1724133810355,10.42,147.07,147.05,3.3978]
[1724133810560,19.0971,147.09,147.05,3.3978]
[1724133811158,3.3973,147.08,147.05,3.3978]
[1724133811354,15.6999,147.09,147.05,3.3978]
[1724133811557,0.04429702,147.08,147.05,0.05072048]
[1724133811854,10.42,147.07,147.05,0.05072048]
[1724133812061,13.8176,147.07,147.05,0.05072048]
[1724133812968,10.42,147.07,147.05,0.05072048]
[1724133813965,13.8175,147.07,147.05,0.05072048]
[1724133814263,0.04429702,147.08,147.05,0.05072048]
[1724133814470,13.8179,147.06,146.98,10.42]
[1724133814767,5.2799,147.09,146.98,10.42]
[1724133814768,10.42,147.04,146.98,10.42]
[1724133815562,0.05134838,147.02,147.0,0.04342179]
[1724133816164,0.05134838,147.02,147.01,3.3988]
[1724133821562,3.3976,147.07,147.03,3.3982]
[1724133821766,3.3976,147.07,147.01,10.42]
[1724133822071,15.6999,147.09,147.03,10.42]
[1724133822369,15.6999,147.09,147.06,3.3977]
[1724133822565,2.5165,147.09,147.04,10.42]
[1724133822768,0.0437263,147.09,147.06,0.04304545]
[1724133823068,0.0437263,147.09,147.07,3.3973]
[1724133824667,3.3973,147.08,147.06,0.04304545]
[1724133824866,10.42,147.08,147.06,0.04304545]
[1724133825876,3.3975,147.07,147.06,0.04304545]
[1724133826369,13.8175,147.07,147.06,0.04304545]
[1724133826575,3.3975,147.07,147.06,0.04304545]
[1724133826867,29.4874,147.08,147.06,0.04304545]
[1724133827072,26.09,147.08,147.06,0.04304545]
[1724133827471,3.3981,147.05,146.97,32.12615035]
[1724133827665,26.09,147.08,146.97,32.12615035]
[1724133828074,3.3978,147.06,147.02,3.3985]
[1724133828271,26.09,147.08,146.97,32.12615035]
[1724133828473,0.04515246,147.05,147.03,0.04349211]
[1724133829574,3.3982,147.04,147.03,0.04349211]
[1724133831376,3.44315246,147.05,147.03,0.04349211]
[1724133831887,0.04515246,147.05,147.03,3.44189211]
[1724133832678,0.04515246,147.05,147.04,3.3982]
[1724133833572,6.07984539,147.12,147.08,3.3972]
[1724133833767,2.6356,147.12,147.08,3.3972]
[1724133834368,3.3967,147.11,147.07,3.3974]
[1724133834579,0.04671423,147.1,147.08,0.04803787]
[1724133835174,0.04671423,147.1,147.08,3.44523787]
[1724133835476,0.04671423,147.1,147.08,0.04803787]
[1724133835973,0.04671423,147.1,147.09,3.397]
[1724133836178,0.04671423,147.1,147.08,0.04803787]
[1724133837084,0.04671423,147.1,147.08,3.44523787]
[1724133837779,3.44351423,147.1,147.08,0.04803787]
[1724133838172,26.09,147.09,147.01,2.6189]
[1724133838876,3.3974,147.08,147.04,3.3981]
[1724133839078,26.09,147.09,147.04,3.3981]
[1724133839382,26.09,147.09,147.0,26.09]
[1724133839383,0.05033803,147.08,147.05,0.04884241]
[1724133839774,3.3976,147.07,147.05,0.04884241]
[1724133840280,0.05033803,147.08,147.05,0.04884241]
[1724133840477,0.05033803,147.08,147.05,3.44664241]
[1724133840783,0.05033803,147.08,147.05,0.04884241]
[1724133841087,26.09,147.07,147.05,0.04884241]
[1724133842086,29.4876,147.07,147.05,0.04884241]
[1724133842281,3.3976,147.07,147.05,0.04884241]
[1724133843582,3.3977,147.06,147.05,0.04884241]
[1724133843783,0.05033803,147.08,147.05,0.04884241]
[1724133844377,3.44773803,147.08,147.05,0.04884241]
[1724133845189,3.44773803,147.08,147.05,3.44674241]
[1724133845385,3.44773803,147.08,147.05,0.04884241]
[1724133847180,3.3975,147.07,147.05,0.04884241]
[1724133847382,0.05033803,147.08,147.05,0.04884241]
[1724133848092,3.44773803,147.08,147.05,0.04884241]